fUSD/lending_fUSD_20260424
["ID","MTS","AMOUNT","RATE_DAILY","PERIOD"]
[421094446,1777028488607,-1444.0,0.00026137,120]
[421094447,1777028488630,-500.0,0.00026521,120]
[421094448,1777028488652,-500.0,0.00026827,120]
[421094449,1777028488675,-500.0,0.00027096,120]
[421094450,1777028488697,-378.35,0.00027397,120]
[421094451,1777028488725,-378.35,0.00027644,120]
[421094452,1777028488748,-500.0,0.00027671,120]
[421094453,1777028488770,-500.0,0.0002786,120]
[421094454,1777028488792,-173.55038176,0.0002789,120]
[421094455,1777028511279,-1069.0,0.00026377,120]
[421094456,1777028511313,-204.79961824,0.0002789,120]
[421094457,1777028511336,-827.4493651,0.0002789,120]
[421094458,1777028511361,-378.35,0.00028137,120]
[421094459,1777028511383,-500.0,0.00028247,120]
[421094460,1777028511405,-378.35,0.00028384,120]
[421094461,1777028511428,-500.0,0.000284,120]
[421094462,1777028511450,-378.35,0.0002863,120]
[421094463,1777028511472,-500.0,0.00028822,120]
[421094464,1777028511495,-378.35,0.00028877,120]
[421094465,1777028511517,-500.0,0.00028893,120]
[421094466,1777028511540,-378.35,0.00029123,120]
[421094467,1777028511569,-378.35,0.0002937,120]
[421094468,1777028511592,-500.0,0.00029397,120]
[421094469,1777028512059,-3128.65101666,0.000295,120]
[421094470,1777028742125,-169.60174005,7.526e-05,2]
[421094471,1777028882515,600.0,8.33e-05,54]
[421094472,1777028882667,600.0,7.593e-05,54]
[421094473,1777028882767,600.0,7.629e-05,54]
[421094474,1777028882856,600.0,7.629e-05,54]
[421094475,1777028969145,-391.0,7.573e-05,2]
[421094476,1777028969168,-391.0,7.613e-05,2]
[421094477,1777028969191,-181.0,7.613e-05,2]
[421094478,1777028969213,-391.0,7.626e-05,2]
[421094479,1777028969236,-391.0,7.663e-05,2]
[421094480,1777028969261,-391.0,7.668e-05,2]
[421094481,1777028969284,-391.0,7.673e-05,2]
[421094482,1777028969308,-391.0,7.68e-05,2]
[421094483,1777028969331,-391.0,7.693e-05,2]
[421094484,1777028969354,-391.0,7.74e-05,2]
[421094485,1777028969378,-391.0,7.751e-05,2]
[421094486,1777028969403,-73.131818,7.751e-05,2]
[421094496,1777029031849,-262.02687277,7.751e-05,2]
[421094497,1777029031861,-55.84130923,7.751e-05,2]
[421094498,1777029031871,-1583.0,7.781e-05,2]
[421094499,1777029031880,-419.0,7.781e-05,2]
[421094500,1777029031889,-300.0,7.783e-05,2]
[421094501,1777029031899,-226.18823378,7.784e-05,2]
[421094502,1777029031908,-391.0,7.792e-05,2]
[421094503,1777029031916,-56.83361619,7.796e-05,2]
[421094504,1777029031939,-219.16638381,7.796e-05,2]
[421094505,1777029031948,-288.1459745,7.796e-05,2]
[421094506,1777029031958,-391.0,7.81e-05,2]
[421094507,1777029031978,-1200.0,7.812e-05,2]
[421094508,1777029031988,-300.0,7.813e-05,2]
[421094509,1777029031999,-391.0,7.814e-05,2]
[421094510,1777029032008,-391.0,7.814e-05,2]
[421094511,1777029032018,-391.0,7.822e-05,2]
[421094512,1777029032027,-391.0,7.833e-05,2]
[421094513,1777029032037,-391.0,7.839e-05,2]
[421094514,1777029032047,-391.0,7.841e-05,2]
[421094515,1777029032056,-391.0,7.845e-05,2]
[421094516,1777029032066,-391.0,7.858e-05,2]
[421094517,1777029032075,-150.0,7.858e-05,2]
[421094518,1777029032085,-391.0,7.86e-05,2]
[421094519,1777029032095,-391.0,7.865e-05,2]
[421094520,1777029032104,-1431.0,7.866e-05,2]
[421094521,1777029032113,-391.0,7.867e-05,2]
[421094522,1777029032123,-1253.0,7.881e-05,2]
[421094523,1777029032132,-500.0,7.881e-05,2]
[421094524,1777029032142,-391.0,7.884e-05,2]
[421094525,1777029032151,-391.0,7.905e-05,2]
[421094526,1777029032161,-391.0,7.907e-05,2]
[421094527,1777029032170,-391.0,7.91e-05,2]
[421094528,1777029032181,-391.0,7.938e-05,2]
[421094529,1777029032190,-391.0,7.954e-05,2]
[421094530,1777029032199,-126.860486,7.989e-05,2]
[421094531,1777029032212,-23.139514,7.989e-05,2]
[421094532,1777029032221,-150.0,7.989e-05,2]
[421094533,1777029032231,-144.860486,7.989e-05,2]
[421094534,1777029032243,-5.139514,7.989e-05,2]
[421094535,1777029032252,-150.0,7.989e-05,2]
[421094536,1777029032262,-150.0,7.989e-05,2]
[421094537,1777029032272,-150.0,7.989e-05,2]
[421094538,1777029032282,-391.0,8.002e-05,2]
[421094539,1777029032292,-9.94731292,8.007e-05,2]
[421094540,1777029032304,-381.05268708,8.007e-05,2]
[421094541,1777029032314,-150.0,8.031e-05,2]
[421094542,1777029032324,-105.59827195,8.042e-05,2]
[421094543,1777029032335,-285.40172805,8.042e-05,2]
[421094544,1777029032345,-306.46630079,8.046e-05,2]
[421094545,1777029032358,-84.53369921,8.046e-05,2]
[421094546,1777029032373,-391.0,8.058e-05,2]
[421094547,1777029032383,-150.0,8.063e-05,2]
[421094548,1777029032393,-391.0,8.064e-05,2]
[421094549,1777029032404,-391.0,8.064e-05,2]
[421094550,1777029032414,-391.0,8.068e-05,2]
[421094551,1777029032424,-150.0,8.074e-05,2]
[421094552,1777029032434,-391.0,8.081e-05,2]
[421094553,1777029032444,-391.0,8.084e-05,2]
[421094554,1777029032454,-391.0,8.096e-05,2]
[421094555,1777029032464,-391.0,8.105e-05,2]
[421094556,1777029032474,-150.0,8.116e-05,2]
[421094557,1777029032483,-391.0,8.124e-05,2]
[421094558,1777029032493,-391.0,8.128e-05,2]
[421094559,1777029032503,-391.0,8.134e-05,2]
[421094560,1777029032513,-150.0,8.158e-05,2]
[421094561,1777029032523,-477.69425177,8.178e-05,2]
[421094562,1777029032532,-150.0,8.2e-05,2]
[421094563,1777029032542,-391.0,8.217e-05,2]
[421094564,1777029032552,-280.0,8.219e-05,2]
[421094565,1777029032562,-500.0,8.219e-05,2]
[421094566,1777029032572,-391.0,8.228e-05,2]
[421094567,1777029032581,-150.0,8.243e-05,2]
[421094568,1777029032591,-349.94711781,8.279e-05,2]
[421094569,1777029032601,-4735.89715988,8.279e-05,2]
[421094570,1777029032611,-250.0,8.279e-05,2]
[421094571,1777029032621,-150.0,8.285e-05,2]
[421094572,1777029032630,-150.0,8.285e-05,2]
[421094573,1777029032640,-391.0,8.286e-05,2]
[421094574,1777029032651,-150.0,8.327e-05,2]
[421094575,1777029032661,-250.0,8.33e-05,2]
[421094576,1777029032671,-391.0,8.355e-05,2]
[421094577,1777029032681,-150.0,8.369e-05,2]
[421094578,1777029032692,-391.0,8.389e-05,2]
[421094579,1777029032704,-391.0,8.41e-05,2]
[421094580,1777029032717,-150.0,8.412e-05,2]
[421094581,1777029032727,-391.0,8.425e-05,2]
[421094582,1777029032738,-391.0,8.447e-05,2]
[421094583,1777029032749,-391.0,8.451e-05,2]
[421094584,1777029032763,-150.0,8.454e-05,2]
[421094585,1777029032774,-391.0,8.462e-05,2]
[421094586,1777029032786,-391.0,8.465e-05,2]
[421094587,1777029032796,-391.0,8.474e-05,2]
[421094588,1777029032806,-391.0,8.481e-05,2]
[421094589,1777029032817,-391.0,8.486e-05,2]
[421094590,1777029032827,-500.0,8.493e-05,2]
[421094591,1777029032840,-150.0,8.496e-05,2]
[421094592,1777029032850,-391.0,8.511e-05,2]
[421094593,1777029032862,-191.126478,8.526e-05,2]
[421094594,1777029032872,-150.0,8.539e-05,2]
[421094595,1777029032883,-150.0,8.581e-05,2]
[421094596,1777029032894,-150.0,8.581e-05,2]
[421094597,1777029032906,-264.45,8.582e-05,2]
[421094598,1777029032917,-1680.0,8.593e-05,2]
[421094599,1777029032927,-420.0,8.594e-05,2]
[421094600,1777029032937,-391.0,8.606e-05,2]
[421094601,1777029032946,-150.0,8.623e-05,2]
[421094602,1777029032957,-391.0,8.633e-05,2]
[421094603,1777029032967,-255.0,8.644e-05,2]
[421094604,1777029032976,-150.0,8.665e-05,2]
[421094605,1777029032990,-391.0,8.684e-05,2]
[421094606,1777029033002,-1000.0,8.699e-05,2]
[421094607,1777029033012,-46523.57546767,8.7e-05,2]
[421094608,1777029033024,-391.0,8.705e-05,2]
[421094609,1777029033035,-150.0,8.708e-05,2]
[421094610,1777029033045,-391.0,8.72e-05,2]
[421094611,1777029033056,-504.0,8.735e-05,2]
[421094612,1777029033067,-150.0,8.75e-05,2]
[421094613,1777029033077,-250.0,8.767e-05,2]
[421094614,1777029033088,-250.0,8.767e-05,2]
[421094615,1777029033098,-381.76,8.767e-05,2]
[421094616,1777029033110,-391.0,8.768e-05,2]
[421094617,1777029033121,-184.62673638,8.777e-05,2]
[421094618,1777029033134,-500.0,8.777e-05,2]
[421094619,1777029033145,-500.0,8.777e-05,2]
[421094620,1777029033155,-500.0,8.777e-05,2]
[421094621,1777029033166,-150.0,8.777e-05,2]
[421094622,1777029033176,-500.0,8.777e-05,2]
[421094623,1777029033189,-150.0,8.777e-05,2]
[421094624,1777029033199,-537.88183946,8.777e-05,2]
[421094625,1777029033212,-150.0,8.777e-05,2]
[421094626,1777029033222,-210.68312372,8.777e-05,2]
[421094627,1777029033233,-2952.12222242,8.783e-05,2]
[421094628,1777029033248,-12906.29411176,8.783e-05,2]
[421094631,1777029038184,-1337.35,8.783e-05,2]
[421094632,1777029038200,-335.09843301,8.783e-05,2]
[421094633,1777029038212,-431.69598331,8.783e-05,2]
[421094634,1777029038227,-16085.0294495,8.783e-05,2]
[421094635,1777029038236,-2500.0,8.784e-05,2]
[421094636,1777029038247,-150.0,8.792e-05,2]
[421094637,1777029038256,-391.0,8.799e-05,2]
[421094638,1777029038266,-391.0,8.807e-05,2]
[421094639,1777029038275,-150.0,8.834e-05,2]
[421094640,1777029038284,-391.0,8.848e-05,2]
[421094641,1777029038294,-150.99,8.864e-05,2]
[421094642,1777029038303,-1623.74,8.864e-05,2]
[421094643,1777029038312,-250.0,8.877e-05,2]
[421094644,1777029038322,-150.0,8.877e-05,2]
[421094645,1777029038331,-150.0,8.877e-05,2]
[421094646,1777029038340,-150.0,8.877e-05,2]
[421094647,1777029038350,-442488.16474696,8.884e-05,2]
[421094648,1777029038361,-1589.58640097,8.884e-05,2]
[421094649,1777029038372,-1738.835448,8.884e-05,2]
[421094650,1777029038386,-3242.36316023,8.884e-05,2]
[421094651,1777029038401,-14989.6315154,8.884e-05,2]
[421094652,1777029038424,-1164.20361154,8.884e-05,2]
[421094653,1777029038436,-436.75223375,8.884e-05,2]
[421094654,1777029038452,-1033.56296967,8.884e-05,2]
[421094656,1777029038470,-2148.150006,8.884e-05,2]
[421094658,1777029038481,-993.71667762,8.884e-05,2]
[421094660,1777029038494,-999.8506,8.884e-05,2]
[421094662,1777029038505,-1021.88178341,8.884e-05,2]
[421094665,1777029038520,-99889.99440921,8.884e-05,2]
[421094815,1777029040049,-265.1286,8.884e-05,2]
[421094816,1777029040414,-247581.23510677,8.884e-05,2]
[421094817,1777029040427,-265.96,8.884e-05,2]
[421094818,1777029040472,-54397.88643051,8.884e-05,2]
[421094819,1777029040483,-625.26141679,8.884e-05,2]
[421094820,1777029040527,-333.26194966,8.884e-05,2]
[421094821,1777029040580,-1267.88716296,8.884e-05,2]
[421094844,1777029043002,-15686.7133413,8.884e-05,2]
[421094845,1777029043056,-95317.63731879,8.884e-05,2]
[421094846,1777029043109,-2326.27450502,8.884e-05,2]
[421094847,1777029043121,-23584.68299799,8.884e-05,2]
[421094848,1777029043167,-181758.87280745,8.884e-05,2]
[421094849,1777029043178,-151.0,8.884e-05,2]
[421094850,1777029043189,-2632.8277,8.885e-05,2]
[421094851,1777029043198,-151.0,8.885e-05,2]
[421094852,1777029043207,-151.0,8.885e-05,2]
[421094853,1777029043216,-150.0,8.959e-05,2]
[421094854,1777029043226,-210.08753541,8.963e-05,2]
[421094855,1777029043235,-151.0,8.982e-05,2]
[421094856,1777029043244,-151.0,8.982e-05,2]
[421094857,1777029043254,-151.0,8.984e-05,2]
[421094858,1777029043263,-500.0,8.999e-05,2]
[421094859,1777029043273,-584.37132261,8.999e-05,2]
[421094861,1777029043282,-591.37630934,8.999e-05,2]
[421094863,1777029043292,-591.37630934,8.999e-05,2]
[421094864,1777029043303,-591.37630934,8.999e-05,2]
[421094865,1777029043312,-591.37630934,8.999e-05,2]
[421094866,1777029043322,-591.37630934,8.999e-05,2]
[421094867,1777029043331,-591.37630934,8.999e-05,2]
[421094868,1777029043341,-591.37630934,8.999e-05,2]
[421094869,1777029043351,-591.37630934,8.999e-05,2]
[421094870,1777029043360,-591.37630934,8.999e-05,2]
[421094871,1777029043369,-591.37630934,8.999e-05,2]
[421094872,1777029043379,-591.37630934,8.999e-05,2]
[421094873,1777029043388,-591.37630934,8.999e-05,2]
[421094874,1777029043398,-591.37630934,8.999e-05,2]
[421094875,1777029043407,-591.37630934,8.999e-05,2]
[421094876,1777029043417,-591.37630934,8.999e-05,2]
[421094877,1777029043426,-591.37630934,8.999e-05,2]
[421094879,1777029043436,-591.37630934,8.999e-05,2]
[421094880,1777029043445,-591.37630934,8.999e-05,2]
[421094881,1777029043454,-591.37630934,8.999e-05,2]
[421094882,1777029043464,-591.37630934,8.999e-05,2]
[421094883,1777029043473,-591.37630934,8.999e-05,2]
[421094884,1777029043483,-591.37630934,8.999e-05,2]
[421094885,1777029043492,-591.37630934,8.999e-05,2]
[421094887,1777029043501,-591.37630934,8.999e-05,2]
[421094888,1777029043511,-591.37630934,8.999e-05,2]
[421094889,1777029043521,-591.37630934,8.999e-05,2]
[421094890,1777029043530,-591.37630934,8.999e-05,2]
[421094891,1777029043539,-591.37630934,8.999e-05,2]
[421094892,1777029043548,-591.37630934,8.999e-05,2]
[421094893,1777029043558,-591.37630934,8.999e-05,2]
[421094894,1777029043567,-591.37630934,8.999e-05,2]
[421094895,1777029043576,-591.37630934,8.999e-05,2]
[421094896,1777029043585,-591.37630934,8.999e-05,2]
[421094897,1777029043595,-591.37630934,8.999e-05,2]
[421094898,1777029043604,-591.37630934,8.999e-05,2]
[421094899,1777029043615,-591.37630934,8.999e-05,2]
[421094900,1777029043625,-591.37630934,8.999e-05,2]
[421094901,1777029043635,-591.37630934,8.999e-05,2]
[421094902,1777029043646,-591.37630934,8.999e-05,2]
[421094903,1777029043655,-591.37630934,8.999e-05,2]
[421094904,1777029043666,-591.37630934,8.999e-05,2]
[421094905,1777029043675,-591.37630934,8.999e-05,2]
[421094906,1777029043685,-591.37630934,8.999e-05,2]
[421094907,1777029043695,-591.37630934,8.999e-05,2]
[421094908,1777029043704,-591.37630934,8.999e-05,2]
[421094909,1777029043713,-591.37630934,8.999e-05,2]
[421094910,1777029043724,-591.37630934,8.999e-05,2]
[421094911,1777029043735,-591.37630934,8.999e-05,2]
[421094912,1777029043744,-591.37630934,8.999e-05,2]
[421094913,1777029043754,-591.37630934,8.999e-05,2]
[421094914,1777029043764,-591.37630934,8.999e-05,2]
[421094915,1777029043774,-111.71076284,8.999e-05,2]
[421094928,1777029045967,-478.06723215,8.999e-05,2]
[421094929,1777029045977,-589.77799499,8.999e-05,2]
[421094930,1777029045987,-589.77799499,8.999e-05,2]
[421094931,1777029045997,-589.77799499,8.999e-05,2]
[421094932,1777029046007,-589.77799499,8.999e-05,2]
[421094933,1777029046016,-589.77799499,8.999e-05,2]
[421094934,1777029046026,-589.77799499,8.999e-05,2]
[421094935,1777029046035,-589.77799499,8.999e-05,2]
[421094936,1777029046046,-589.77799499,8.999e-05,2]
[421094937,1777029046056,-589.77799499,8.999e-05,2]
[421094938,1777029046065,-589.77799499,8.999e-05,2]
[421094939,1777029046074,-589.77799499,8.999e-05,2]
[421094940,1777029046085,-589.77799499,8.999e-05,2]
[421094941,1777029046095,-589.77799499,8.999e-05,2]
[421094942,1777029046104,-589.77799499,8.999e-05,2]
[421094943,1777029046113,-589.77799499,8.999e-05,2]
[421094944,1777029046123,-589.77799499,8.999e-05,2]
[421094945,1777029046133,-589.77799499,8.999e-05,2]
[421094946,1777029046142,-589.77799499,8.999e-05,2]
[421094947,1777029046152,-589.77799499,8.999e-05,2]
[421094948,1777029046162,-589.77799499,8.999e-05,2]
[421094949,1777029046172,-589.77799499,8.999e-05,2]
[421094950,1777029046181,-589.77799499,8.999e-05,2]
[421094951,1777029046190,-589.77799499,8.999e-05,2]
[421094952,1777029046199,-589.77799499,8.999e-05,2]
[421094953,1777029046208,-589.77799499,8.999e-05,2]
[421094954,1777029046217,-589.77799499,8.999e-05,2]
[421094955,1777029046227,-589.77799499,8.999e-05,2]
[421094956,1777029046236,-589.77799499,8.999e-05,2]
[421094957,1777029046247,-589.77799499,8.999e-05,2]
[421094958,1777029046257,-589.77799499,8.999e-05,2]
[421094959,1777029046266,-589.77799499,8.999e-05,2]
[421094960,1777029046275,-441.52180465,8.999e-05,2]
[421094961,1777029046284,-589.77799499,8.999e-05,2]
[421094962,1777029046293,-589.77799497,8.999e-05,2]
[421094963,1777029046303,-589.77799497,8.999e-05,2]
[421094964,1777029046314,-589.77799497,8.999e-05,2]
[421094965,1777029046328,-589.77799497,8.999e-05,2]
[421094966,1777029046338,-1382.09009037,9e-05,2]
[421094967,1777029046347,-151.0,9.026e-05,2]
[421094968,1777029046357,-186.01818913,9.072e-05,2]
[421094969,1777029046368,-620.0,9.1e-05,2]
[421094970,1777029046378,-338.0,9.1e-05,2]
[421094971,1777029046387,-500.0,9.103e-05,2]
[421094972,1777029046397,-500.0,9.103e-05,2]
[421094973,1777029046407,-151.0,9.126e-05,2]
[421094974,1777029046416,-150.0,9.126e-05,2]
[421094975,1777029046426,-238.923133,9.127e-05,2]
[421094976,1777029046436,-945.97189863,9.128e-05,2]
[421094977,1777029046450,-2251.65069118,9.128e-05,2]
[421094987,1777029057423,152.0,9.061e-05,30]
[421094988,1777029058838,152.0,9.07e-05,30]
[421094989,1777029083695,152.0,9.385e-05,30]
[421094991,1777029785970,3490.28961984,7.526e-05,2]
[421094992,1777029844881,803.26203477,6.592e-05,2]
[421094993,1777029846745,775.87655791,6.592e-05,2]
[421094994,1777030006104,-150.0,7.718e-05,2]
[421094995,1777030006128,-150.0,7.718e-05,2]
[421094996,1777030006154,-150.0,7.718e-05,2]
[421094997,1777030006176,-150.0,7.718e-05,2]
[421094998,1777030006201,-150.0,7.718e-05,2]
[421094999,1777030006228,-150.0,7.718e-05,2]
[421095000,1777030006251,-150.0,7.718e-05,2]
[421095001,1777030006276,-150.0,7.718e-05,2]
[421095002,1777030006299,-150.0,7.718e-05,2]
[421095003,1777030006325,-229.42027484,7.718e-05,2]
[421095006,1777030232021,-252.0,7.768e-05,2]
[421095007,1777030232030,-150.0,7.768e-05,2]
[421095008,1777030232039,-135.53588,7.819e-05,2]
[421095034,1777030238945,-14.46412,7.819e-05,2]
[421095036,1777030238954,-150.0,7.869e-05,2]
[421095038,1777030238963,-150.0,7.889e-05,2]
[421095040,1777030238973,-150.0,7.92e-05,2]
[421095042,1777030238985,-150.0,7.932e-05,2]
[421095044,1777030238995,-150.0,7.97e-05,2]
[421095046,1777030239004,-136.69588,8.004e-05,2]
[421095049,1777030239023,-13.30412,8.004e-05,2]
[421095051,1777030239033,-150.0,8.004e-05,2]
[421095053,1777030239042,-150.0,8.004e-05,2]
[421095055,1777030239051,-150.0,8.02e-05,2]
[421095057,1777030239060,-150.0,8.02e-05,2]
[421095059,1777030239070,-150.0,8.061e-05,2]
[421095061,1777030239079,-1917.0,8.061e-05,2]
[421095063,1777030239089,-150.0,8.071e-05,2]
[421095064,1777030239100,-711.0,8.077e-05,2]
[421095066,1777030239111,-337.0,8.086e-05,2]
[421095068,1777030239121,-200.0,8.1e-05,2]
[421095070,1777030239130,-1200.0,8.101e-05,2]
[421095072,1777030239139,-1617.0,8.102e-05,2]
[421095074,1777030239149,-222.10980938,8.105e-05,2]
[421095076,1777030239158,-204.41702647,8.116e-05,2]
[421095078,1777030239168,-161.97040826,8.117e-05,2]
[421095083,1777030239205,-138.02959174,8.117e-05,2]
[421095085,1777030239214,-300.0,8.117e-05,2]
[421095087,1777030239224,-1724.0,8.118e-05,2]
[421095089,1777030239233,-150.0,8.121e-05,2]
[421095091,1777030239242,-150.0,8.147e-05,2]
[421095093,1777030239251,-80.88940175,8.147e-05,2]
[421095095,1777030239263,-69.11059825,8.147e-05,2]
[421095097,1777030239273,-150.0,8.172e-05,2]
[421095099,1777030239282,-150.0,8.219e-05,2]
[421095101,1777030239291,-280.0,8.219e-05,2]
[421095103,1777030239301,-150.0,8.222e-05,2]
[421095105,1777030239310,-150.0,8.232e-05,2]
[421095107,1777030239319,-150.0,8.273e-05,2]
[421095109,1777030239328,-88.64024172,8.273e-05,2]
[421095111,1777030239340,-680.35975828,8.273e-05,2]
[421095114,1777030239350,-150.0,8.289e-05,2]
[421095116,1777030239359,-150.0,8.289e-05,2]
[421095117,1777030239368,-150.0,8.289e-05,2]
[421095118,1777030239378,-152.0,8.31e-05,7]
[421095119,1777030239387,-152.0,8.31e-05,7]
[421095120,1777030239397,-152.0,8.318e-05,7]
[421095121,1777030239407,-152.0,8.318e-05,7]
[421095122,1777030239417,-150.0,8.323e-05,2]
[421095123,1777030239427,-150.0,8.361e-05,2]
[421095124,1777030239436,-150.0,8.374e-05,2]
[421095125,1777030239446,-2349.19322339,8.396e-05,2]
[421095126,1777030239458,-1026.91239915,8.396e-05,2]
[421095127,1777030239485,-267.97737746,8.396e-05,2]
[421095128,1777030239494,-232.02262254,8.396e-05,2]
[421095129,1777030239506,-0.83137746,8.396e-05,2]
[421095130,1777030239515,-150.0,8.404e-05,2]
[421095131,1777030239525,-150.0,8.424e-05,2]
[421095132,1777030239534,-381.62700081,8.424e-05,2]
[421095133,1777030239554,-118.37299919,8.424e-05,2]
[421095134,1777030239564,-150.0,8.474e-05,2]
[421095135,1777030239573,-150.0,8.525e-05,2]
[421095136,1777030239583,-169.39,8.557e-05,2]
[421095137,1777030239593,-286.65485468,8.565e-05,2]
[421095138,1777030239602,-514.09,8.566e-05,2]
[421095139,1777030239612,-500.0,8.566e-05,2]
[421095140,1777030239621,-500.0,8.566e-05,2]
[421095141,1777030239631,-500.0,8.566e-05,2]
[421095142,1777030239640,-359.02597287,8.566e-05,2]
[421095143,1777030239652,-140.97402713,8.566e-05,2]
[421095144,1777030239661,-190.42021491,8.566e-05,2]
[421095145,1777030239720,-309.57978509,8.566e-05,2]
[421095146,1777030239730,-500.0,8.566e-05,2]
[421095148,1777030239740,-500.0,8.566e-05,2]
[421095150,1777030239750,-500.0,8.566e-05,2]
[421095152,1777030239759,-500.0,8.566e-05,2]
[421095154,1777030239769,-500.0,8.566e-05,2]
[421095156,1777030239779,-500.0,8.566e-05,2]
[421095158,1777030239789,-365.22449198,8.566e-05,2]
[421095160,1777030239803,-134.77550802,8.566e-05,2]
[421095162,1777030239813,-500.0,8.566e-05,2]
[421095164,1777030239822,-500.0,8.566e-05,2]
[421095166,1777030239831,-500.0,8.566e-05,2]
[421095168,1777030239841,-112.65090257,8.566e-05,2]
[421095171,1777030239855,-387.34909743,8.566e-05,2]
[421095173,1777030239864,-500.0,8.566e-05,2]
[421095175,1777030239874,-500.0,8.566e-05,2]
[421095177,1777030239883,-500.0,8.566e-05,2]
[421095179,1777030239892,-500.0,8.566e-05,2]
[421095181,1777030239901,-500.0,8.566e-05,2]
[421095182,1777030239910,-500.0,8.566e-05,2]
[421095183,1777030239920,-458.85080257,8.566e-05,2]
[421095227,1777030240550,-41.14919743,8.566e-05,2]
[421095228,1777030240560,-500.0,8.566e-05,2]
[421095229,1777030240569,-500.0,8.566e-05,2]
[421095230,1777030240579,-500.0,8.566e-05,2]
[421095231,1777030240588,-500.0,8.566e-05,2]
[421095232,1777030240598,-500.0,8.566e-05,2]
[421095233,1777030240607,-500.0,8.566e-05,2]
[421095234,1777030240617,-500.0,8.566e-05,2]
[421095235,1777030240626,-500.0,8.566e-05,2]
[421095236,1777030240636,-500.0,8.566e-05,2]
[421095237,1777030240645,-500.0,8.566e-05,2]
[421095238,1777030240655,-500.0,8.566e-05,2]
[421095239,1777030240664,-500.0,8.566e-05,2]
[421095240,1777030240674,-500.0,8.566e-05,2]
[421095241,1777030240684,-500.0,8.566e-05,2]
[421095242,1777030240693,-500.0,8.566e-05,2]
[421095243,1777030240703,-500.0,8.566e-05,2]
[421095244,1777030240712,-500.0,8.566e-05,2]
[421095245,1777030240722,-500.0,8.566e-05,2]
[421095246,1777030240731,-500.0,8.566e-05,2]
[421095247,1777030240740,-500.0,8.566e-05,2]
[421095248,1777030240749,-504.50576597,8.566e-05,2]
[421095249,1777030240759,-500.0,8.566e-05,2]
[421095250,1777030240768,-500.0,8.566e-05,2]
[421095251,1777030240777,-500.0,8.566e-05,2]
[421095252,1777030240786,-500.0,8.566e-05,2]
[421095253,1777030240795,-500.0,8.566e-05,2]
[421095254,1777030240805,-500.0,8.566e-05,2]
[421095255,1777030240814,-500.0,8.566e-05,2]
[421095256,1777030240823,-500.0,8.566e-05,2]
[421095257,1777030240833,-500.0,8.566e-05,2]
[421095258,1777030240842,-500.0,8.566e-05,2]
[421095259,1777030240852,-500.0,8.566e-05,2]
[421095260,1777030240861,-500.0,8.566e-05,2]
[421095261,1777030240871,-500.0,8.566e-05,2]
[421095262,1777030240881,-500.0,8.566e-05,2]
[421095263,1777030240890,-500.0,8.566e-05,2]
[421095264,1777030240900,-500.0,8.566e-05,2]
[421095265,1777030240909,-500.0,8.566e-05,2]
[421095266,1777030240919,-500.0,8.566e-05,2]
[421095267,1777030240928,-500.0,8.566e-05,2]
[421095268,1777030240938,-500.0,8.566e-05,2]
[421095269,1777030240947,-250.0,8.566e-05,2]
[421095270,1777030240956,-500.0,8.566e-05,2]
[421095271,1777030240965,-500.0,8.566e-05,2]
[421095272,1777030240975,-500.0,8.566e-05,2]
[421095273,1777030240984,-500.0,8.566e-05,2]
[421095274,1777030240994,-500.0,8.566e-05,2]
[421095275,1777030241003,-500.0,8.566e-05,2]
[421095276,1777030241012,-500.0,8.566e-05,2]
[421095277,1777030241026,-584.37132261,8.566e-05,2]
[421095278,1777030241036,-160513.24989153,8.567e-05,2]
[421095279,1777030241056,-438.0000005,8.567e-05,2]
[421095280,1777030241067,-377.55000004,8.567e-05,2]
[421095281,1777030241090,-610.45389952,8.567e-05,2]
[421095292,1777030243191,-36572.36268271,8.567e-05,2]
[421095293,1777030243444,-175.49114165,8.567e-05,2]
[421095294,1777030243467,-925.03709536,8.567e-05,2]
[421095295,1777030243479,-1911.16944807,8.567e-05,2]
[421095296,1777030243498,-4541.51549796,8.567e-05,2]
[421095308,1777030246172,-213570.09428409,8.567e-05,2]
[421095309,1777030246183,-2187.32541264,8.567e-05,2]
[421095310,1777030246544,-865.95800114,8.567e-05,2]
[421095311,1777030246603,-44514.64712996,8.567e-05,2]